lending/lending_fUSD_20240219
["ID","MTS","AMOUNT","RATE_DAILY","PERIOD"]
[314411619,1708305038544,-99055.492038,0.000368,2]
[314411621,1708305038554,-3117.621374,0.000368,2]
[314411622,1708305038563,-3280.354374,0.000368,2]
[314411624,1708305038572,-174.87,0.00036949,2]
[314411625,1708305038581,-7927.31680237,0.00037,15]
[314411626,1708305038590,-4100.0,0.00037144,2]
[314411627,1708305038600,-19859.0,0.00037144,2]
[314411628,1708305038609,-433.069,0.00037144,2]
[314411629,1708305038618,-1033.069,0.00037144,2]
[314411630,1708305038627,-1288.24458819,0.00037513,2]
[314411631,1708305038636,-150.0,0.000377,2]
[314411632,1708305038645,-582.35,0.00037794,2]
[314411633,1708305038654,-150.492989,0.000378,2]
[314411634,1708305038664,-150.1,0.00037807,2]
[314411635,1708305038673,-1000.0,0.00037891,10]
[314411636,1708305038683,-300.67542198,0.00037891,7]
[314411637,1708305038692,-169.55157724,0.00037891,7]
[314411638,1708305038701,-990.6005547,0.00038001,2]
[314411639,1708305038710,-49532.7867,0.00038101,2]
[314411640,1708305038720,-21025.1462,0.00038101,2]
[314411641,1708305038729,-1000.0,0.00038101,2]
[314411642,1708305038739,-438.74,0.00038188,2]
[314411643,1708305038748,-151.45,0.00038239,2]
[314411644,1708305038757,-713.56972441,0.00038329,11]
[314411645,1708305038767,-1222.31918726,0.00038329,13]
[314411646,1708305038776,-632.44,0.00038356,15]
[314411647,1708305038785,-150.0,0.00038356,2]
[314411648,1708305038794,-1000.0,0.000384,30]
[314411649,1708305038803,-174.87,0.00038796,2]
[314411650,1708305038813,-1288.24458819,0.00038854,2]
[314411651,1708305038822,-78561.6126441,0.0003888,4]
[314411652,1708305038832,-152.78611802,0.0003889,2]
[314411653,1708305038841,-78561.6126441,0.0003889,4]
[314411654,1708305038850,-100000.0,0.000389,2]
[314411655,1708305038859,-852.8636,0.000389,2]
[314411656,1708305038869,-3548.83,0.00038939,2]
[314411657,1708305038878,-157123.225288,0.0003898,4]
[314411658,1708305038887,-243755.33942928,0.0003898,3]
[314411659,1708305038896,-78561.6126441,0.0003898,4]
[314411660,1708305038906,-157123.225288,0.0003899,4]
[314411661,1708305038915,-250.0,0.00038999,2]
[314411662,1708305038929,-283982.50631739,0.00039,2]
[314411663,1708305038938,-156.85,0.00039064,2]
[314411664,1708305038947,-500.0,0.00039178,2]
[314411665,1708305038957,-911.68,0.0003926,2]
[314411666,1708305038966,-180.0,0.00039346,2]
[314411667,1708305038975,-150.0,0.00039366,2]
[314411668,1708305038984,-158.15,0.00039424,2]
[314411669,1708305038993,-500.0,0.00039547,2]
[314411670,1708305039004,-205.0,0.00039553,2]
[314411671,1708305039013,-990.60055463,0.0003958,2]
[314411672,1708305039024,-467.98977658,0.00039589,2]
[314411673,1708305039033,-481.57206202,0.00039592,11]
[314411674,1708305039042,-152.49,0.000397,3]
[314411675,1708305039051,-152.49,0.000397,3]
[314411676,1708305039060,-152.49,0.000397,3]
[314411677,1708305039069,-152.49,0.000397,3]
[314411678,1708305039078,-152.49,0.000397,3]
[314411679,1708305039087,-152.49,0.000397,3]
[314411680,1708305039096,-2687.61,0.000397,3]
[314411681,1708305039106,-2687.61,0.000397,3]
[314411682,1708305039115,-2687.61,0.000397,3]
[314411683,1708305039124,-2687.61,0.000397,3]
[314411684,1708305039134,-2687.61,0.000397,3]
[314411685,1708305039144,-2687.61,0.000397,3]
[314411686,1708305039153,-2687.61,0.000397,3]
[314411687,1708305039162,-2687.61,0.000397,3]
[314411688,1708305039171,-2687.61,0.000397,3]
[314411689,1708305039180,-2687.61,0.000397,3]
[314411690,1708305039190,-2687.61,0.000397,3]
[314411691,1708305039199,-2687.61,0.000397,3]
[314411692,1708305039209,-2687.61,0.000397,3]
[314411693,1708305039218,-2687.61,0.000397,3]
[314411694,1708305039227,-2687.61,0.000397,3]
[314411695,1708305039238,-2687.61,0.000397,3]
[314411696,1708305039247,-2687.61,0.000397,3]
[314411697,1708305039257,-2687.61,0.000397,3]
[314411698,1708305039266,-2687.61,0.000397,3]
[314411699,1708305039275,-2687.61,0.000397,3]
[314411700,1708305039285,-160.0,0.00039726,4]
[314411701,1708305039294,-500.0,0.00039726,2]
[314411702,1708305039303,-606.42,0.00039726,2]
[314411703,1708305039312,-516.66413284,0.00039726,4]
[314411704,1708305039321,-500.0,0.00039726,2]
[314411705,1708305039330,-500.0,0.00039726,2]
[314411706,1708305039339,-150.4,0.00039726,2]
[314411707,1708305039348,-500.0,0.00039726,4]
[314411708,1708305039357,-165.55452855,0.00039726,4]
[314411709,1708305039366,-500.0,0.00039726,4]
[314411710,1708305039375,-527.10337546,0.00039726,4]
[314411711,1708305039384,-166.41939892,0.00039726,4]
[314411712,1708305039394,-210.12772207,0.00039726,4]
[314411713,1708305039403,-500.0,0.00039726,4]
[314411714,1708305039412,-500.0,0.00039726,4]
[314411715,1708305039421,-500.0,0.00039726,4]
[314411716,1708305039430,-500.0,0.00039726,4]
[314411717,1708305039439,-500.0,0.00039726,4]
[314411718,1708305039447,-500.0,0.00039726,4]
[314411719,1708305039458,-248.98,0.00039726,4]
[314411720,1708305039467,-500.0,0.00039726,4]
[314411721,1708305039476,-536.93763146,0.00039726,4]
[314411722,1708305039485,-500.0,0.00039726,4]
[314411723,1708305039494,-500.0,0.00039726,4]
[314411724,1708305039504,-500.0,0.00039726,4]
[314411725,1708305039513,-500.0,0.00039726,4]
[314411726,1708305039522,-500.0,0.00039726,4]
[314411727,1708305039531,-500.0,0.00039726,4]
[314411728,1708305039540,-500.0,0.00039726,4]
[314411729,1708305039549,-500.0,0.00039726,4]
[314411730,1708305039558,-500.0,0.00039726,4]
[314411731,1708305039567,-500.0,0.00039726,2]
[314411732,1708305039577,-500.0,0.00039726,2]
[314411733,1708305039586,-500.0,0.00039726,2]
[314411734,1708305039595,-454.8,0.00039726,2]
[314411735,1708305039604,-500.0,0.00039726,4]
[314411736,1708305039614,-500.0,0.00039726,4]
[314411737,1708305039623,-500.0,0.00039726,4]
[314411738,1708305039632,-500.0,0.00039726,2]
[314411739,1708305039641,-500.0,0.00039726,2]
[314411740,1708305039650,-211.13900055,0.00039726,2]
[314411741,1708305039660,-159.0,0.00039752,7]
[314411742,1708305039669,-5310.737,0.0003978,2]
[314411743,1708305039678,-78561.6126441,0.0003987,6]
[314411744,1708305039687,-63369.21191651,0.0003988,2]
[314411745,1708305039697,-5000.0,0.0003989,3]
[314411746,1708305039706,-1250.0,0.0004,2]
[314411747,1708305039715,-25710.28,0.0004,30]
[314411748,1708305039725,-854.35,0.0004,9]
[314411749,1708305039734,-254.38382888,0.0004,2]
[314411750,1708305039744,-893.16,0.0004,10]
[314411751,1708305039753,-792.07591603,0.0004,7]
[314411752,1708305039763,-150.0,0.0004,41]
[314411753,1708305039772,-255.0,0.0004,12]
[314411754,1708305039781,-41055.59203655,0.0004,2]
[314411755,1708305039790,-255.0,0.0004,12]
[314411756,1708305039800,-4821.0,0.0004,10]
[314411757,1708305039809,-255.0,0.0004,12]
[314411758,1708305039818,-6699.987037,0.0004,2]
[314411759,1708305039827,-4995.56,0.0004,2]
[314411760,1708305039836,-275.5,0.0004,2]
[314411761,1708305039846,-303.22,0.0004,2]
[314411762,1708305039855,-255.0,0.0004,12]
[314411763,1708305039864,-200.0,0.00040036,20]
[314411764,1708305039873,-750.0,0.00040095,2]
[314411765,1708305039881,-255.0,0.00040128,12]
[314411766,1708305039890,-255.0,0.00040128,12]
[314411767,1708305039900,-255.0,0.00040128,12]
[314411768,1708305039909,-733.42608869,0.0004017,2]
[314411769,1708305039918,-151.0,0.00040178,2]
[314411770,1708305039932,-1288.24458819,0.00040195,2]
[314411771,1708305039941,-164.93,0.00040218,2]
[314411772,1708305039949,-10784.423,0.00040258,2]
[314411773,1708305039959,-18490.7157,0.00040258,2]
[314411774,1708305039968,-1559.1041,0.0004027,2]
[314411775,1708305039978,-10996.24468712,0.000403,2]
[314411776,1708305039987,-200.0,0.000403,15]
[314411777,1708305039996,-159.0,0.000403,7]
[314411778,1708305040006,-150.0,0.000403,15]
[314411779,1708305040015,-417.65,0.0004032,2]
[314411780,1708305040024,-733.42608867,0.00040331,2]
[314411781,1708305040033,-279.67839614,0.00040358,2]
[314411782,1708305040042,-320.0446233,0.00040358,2]
[314411783,1708305040051,-888.53064708,0.00040358,2]
[314411784,1708305040060,-177.7061293,0.00040358,2]
[314411785,1708305040069,-1479.6244913,0.00040358,2]
[314411786,1708305040078,-613.0168377,0.00040358,2]
[314411787,1708305040087,-17950.2880007,0.00040358,2]
[314411788,1708305040096,-1463.895545,0.00040358,2]
[314411789,1708305040105,-160.0,0.0004036,2]
[314411790,1708305040114,-1200.62959085,0.00040368,2]
[314411791,1708305040123,-3318.4901846,0.00040369,2]
[314411792,1708305040132,-7482.68204025,0.0004037,4]
[314411793,1708305040141,-280.0,0.0004037,15]
[314411794,1708305040150,-12653.0,0.0004037,2]
[314411795,1708305040159,-1278.757,0.0004037,4]
[314411796,1708305040168,-150.0,0.00040375,2]
[314411797,1708305040177,-300.74928984,0.00040386,4]
[314411798,1708305040186,-184.0,0.00040386,2]
[314411799,1708305040195,-205.21,0.00040412,2]
[314411800,1708305040205,-1000.0,0.00040417,10]
[314411801,1708305040214,-1000.0,0.00040417,10]
[314411802,1708305040224,-1000.0,0.00040417,10]
[314411803,1708305040234,-500.0,0.00040424,2]
[314411804,1708305040244,-438.74,0.00040452,2]
[314411805,1708305040254,-150.04,0.00040455,2]
[314411806,1708305040263,-733.42608867,0.00040492,2]
[314411807,1708305040273,-188.67180668,0.00040492,32]
[314411808,1708305040283,-384.3721604,0.00040515,30]
[314411809,1708305040292,-500.0,0.00040527,2]
[314411810,1708305040302,-220.43831,0.00040548,14]
[314411811,1708305040311,-1479.6244913,0.00040564,2]
[314411812,1708305040321,-1479.6244913,0.00040564,2]
[314411813,1708305040331,-613.0168377,0.00040564,2]
[314411814,1708305040341,-613.0168377,0.00040564,2]
[314411815,1708305040350,-14409.3594199,0.00040564,2]
[314411816,1708305040359,-10868.4308391,0.00040564,2]
[314411817,1708305040369,-1463.895545,0.00040564,2]
[314411818,1708305040379,-1463.895545,0.00040564,2]
[314411819,1708305040388,-150.0,0.00040591,3]
[314411820,1708305040398,-150.0,0.00040591,3]
[314411821,1708305040407,-150.0,0.00040591,3]
[314411822,1708305040416,-150.0,0.00040591,3]
[314411823,1708305040426,-150.0,0.00040591,3]
[314411824,1708305040435,-150.0,0.00040591,3]
[314411825,1708305040445,-150.0,0.00040591,3]
[314411826,1708305040454,-150.0,0.00040591,3]
[314411827,1708305040463,-150.0,0.00040591,3]
[314411828,1708305040473,-150.0,0.00040591,3]
[314411829,1708305040482,-150.0,0.00040591,3]
[314411830,1708305040491,-150.0,0.00040591,3]
[314411831,1708305040501,-150.0,0.00040591,3]
[314411832,1708305040511,-150.0,0.00040591,3]
[314411833,1708305040520,-150.0,0.00040591,3]
[314411834,1708305040529,-150.0,0.00040591,3]
[314411835,1708305040538,-160.0006012,0.00040591,3]
[314411836,1708305040547,-32406.95698355,0.00040592,2]
[314411837,1708305040557,-32406.95698355,0.00040592,2]
[314411838,1708305040566,-418812.39000963,0.00040592,30]
[314411839,1708305040581,-357896.71066918,0.00040592,30]
[314411840,1708305040592,-3464.76910229,0.00040592,30]
[314411846,1708305040903,-452.63,0.00037044,2]
[314411847,1708305041785,-520.89,0.00037044,2]
[314411921,1708305043242,-214.21261737,0.00037044,2]
[314411922,1708305043251,-1385.28748263,0.00038329,13]
[314411923,1708305043404,-2913.61875753,0.00038329,13]
[314411924,1708305043416,-2424.68360252,0.00038329,13]
[314411925,1708305043521,-4913.326119,0.00038329,13]
[314411926,1708305043530,-20000.0,0.00040591,2]
[314411927,1708305043540,-314585.38462258,0.00040592,30]
[314411929,1708305046107,-1187.73261736,0.00038139,2]
[314411930,1708305046117,-3318.4901846,0.00040591,2]
[314411931,1708305046126,-39545.2337501,0.00040592,30]
[314411932,1708305046139,-5768.06284292,0.00040592,30]
[314411933,1708305046151,-315.61956586,0.00040592,30]
[314411934,1708305046164,-1962.175,0.00040592,30]
[314411935,1708305046439,-2131.51534055,0.00040592,30]
[314411936,1708305046451,-12506.96708801,0.00040592,30]
[314411937,1708305046462,-1333.48249534,0.00040592,30]
[314411954,1708305046653,-129308.91662457,0.00040592,30]
[314411956,1708305046663,-53511.43383857,0.00040592,30]
[314411958,1708305046672,-1177.4482,0.00040592,7]
[314411960,1708305046681,-227.95899015,0.00040592,5]
[314411962,1708305046690,-270.18533098,0.00040592,30]
[314411964,1708305046699,-611.75358818,0.00040592,30]
[314411966,1708305046708,-161.90746231,0.00040592,3]
[314411968,1708305046717,-418.22220661,0.00040592,30]
[314411970,1708305046726,-1761.12828795,0.00040592,30]
[314411972,1708305046735,-727.61025576,0.00040592,30]
[314411974,1708305046745,-1135.25670614,0.00040592,30]
[314411976,1708305046754,-2144.10521174,0.00040592,30]
[314411978,1708305046763,-179.89663501,0.00040592,30]
[314411983,1708305046939,-154.4,0.00040592,30]
[314411984,1708305046948,-8613.0,0.00040592,7]
[314411985,1708305046958,-4507.28982746,0.00040592,2]
[314411986,1708305046967,-1000.0,0.00040592,30]
[314411987,1708305046976,-573.48403289,0.00040592,120]
[314411988,1708305046985,-583.37689725,0.00040592,120]
[314411989,1708305046994,-256.0,0.00040592,120]
[314411990,1708305047004,-200.0,0.00040592,120]
[314411991,1708305047013,-264.0,0.00040592,7]
[314411992,1708305047023,-851.98595848,0.00040592,120]
[314411993,1708305047031,-971.42658931,0.00040592,120]
[314411994,1708305047040,-259.95634892,0.00040592,120]
[314411995,1708305047049,-156.08698912,0.00040592,120]
[314411996,1708305047058,-2924.17172783,0.00040592,120]
[314411997,1708305047067,-311.16486659,0.00040592,120]
[314411998,1708305047076,-197.85180236,0.00040592,120]
[314411999,1708305047085,-5545.49165267,0.00040592,2]
[314412000,1708305047094,-255.74266634,0.00040592,120]
[314412001,1708305047103,-184.89866576,0.00040592,120]
[314412002,1708305047113,-273.41616811,0.00040592,120]
[314412003,1708305047122,-45523.21121905,0.00040592,2]
[314412004,1708305047130,-170.69049647,0.00040592,120]
[314412005,1708305047139,-237.95930986,0.00040592,120]
[314412006,1708305047148,-392.07199685,0.00040592,120]
[314412007,1708305047157,-276.15975971,0.00040592,120]
[314412008,1708305047166,-187.76225716,0.00040592,60]
[314412009,1708305047175,-7312.99934916,0.00040592,50]
[314412010,1708305047185,-7989.59192647,0.00040592,60]
[314412011,1708305047194,-300.0,0.00040592,36]
[314412012,1708305047203,-9227.0,0.00040592,10]
[314412013,1708305047212,-250.97158155,0.00040592,15]
[314412014,1708305047221,-416.27130718,0.00040592,120]
[314412015,1708305047231,-177.38182329,0.00040592,30]
[314412016,1708305047240,-219.43687725,0.00040592,2]
[314412017,1708305047250,-6300.0,0.00040592,9]
[314412018,1708305047259,-311.90394162,0.00040592,120]
[314412019,1708305047268,-1902.42852081,0.00040592,120]
[314412020,1708305047277,-300.0,0.00040592,15]
[314412021,1708305047286,-1253.04686405,0.00040592,15]
[314412022,1708305047295,-174.29403326,0.00040592,2]
[314412023,1708305047304,-354.63876768,0.00040592,120]
[314412024,1708305047313,-2364346.70580918,0.00040592,10]
[314412025,1708305047322,-81999.03744542,0.00040592,2]
[314412026,1708305047330,-2481.5300608,0.00040592,30]
[314412027,1708305047340,-569.77208552,0.00040592,2]
[314412028,1708305047349,-6183.3631673,0.00040592,10]
[314412029,1708305047357,-587.47824701,0.00040592,2]
[314412030,1708305047366,-6454.80074278,0.00040592,4]
[314412031,1708305047375,-133042.84658552,0.00040592,2]
[314412032,1708305047384,-2640.46297307,0.00040592,2]
[314412033,1708305047393,-1585.01249299,0.00040592,2]
[314412034,1708305047403,-71693.06479696,0.00040592,25]
[314412035,1708305047412,-160.0,0.00040592,3]
[314412036,1708305047421,-163.8609183,0.00040592,2]
[314412037,1708305047430,-500.0,0.00040592,120]
[314412038,1708305047439,-104443.09858696,0.00040592,2]
[314412039,1708305047448,-6686.86899111,0.00040592,2]
[314412040,1708305047457,-1396.22293188,0.00040592,2]
[314412041,1708305047466,-960.0,0.00040592,120]
[314412042,1708305047474,-115006.17521912,0.00040592,2]
[314412043,1708305047486,-837.47996376,0.00040592,2]
[314412044,1708305047495,-315.10725325,0.00040592,2]
[314412045,1708305047504,-8851.75767462,0.00040592,2]
[314412046,1708305047515,-550.0,0.00040592,2]
[314412047,1708305047524,-1006.50123125,0.00040592,2]
[314412048,1708305047533,-10315.03733436,0.00040592,2]
[314412049,1708305047542,-163222.64558446,0.00040592,2]
[314412050,1708305047551,-14409.94426161,0.00040592,2]
[314412051,1708305047559,-6000.0,0.00040592,2]
[314412052,1708305047568,-10224.64091612,0.00040592,2]
[314412053,1708305047577,-343.46856998,0.00040592,2]
[314412054,1708305047586,-200.0,0.00040592,2]
[314412055,1708305047597,-629.62109262,0.00040592,2]
[314412056,1708305047606,-603.89096654,0.00040592,2]
[314412057,1708305047615,-207.06601026,0.00040592,2]
[314412058,1708305047623,-147905.00473131,0.00040592,2]
[314412059,1708305047632,-433.02908205,0.00040592,2]
[314412060,1708305047642,-1028.59359266,0.00040592,2]
[314412061,1708305047651,-20482.71078248,0.00040592,2]
[314412062,1708305047660,-2500.0,0.00040592,2]
[314412063,1708305047669,-558.60523856,0.00040592,2]
[314412064,1708305047678,-2294.49445806,0.00040592,2]
[314412065,1708305047687,-26799.65090782,0.00040592,2]
[314412066,1708305047696,-232.12560636,0.00040592,2]
[314412067,1708305047705,-5836.94083257,0.00040592,13]
[314412068,1708305047715,-519.78763708,0.00040592,2]
[314412069,1708305047724,-430059.62199462,0.00040592,2]
[314412070,1708305047732,-880.1854064,0.00040592,2]
[314412071,1708305047741,-26599.30847634,0.00040592,2]
[314412072,1708305047752,-9192.60481917,0.00040592,2]
[314412073,1708305047760,-464.50065454,0.00040592,2]
[314412074,1708305047769,-14677.46491087,0.00040592,2]
[314412075,1708305047778,-229.56311492,0.00040592,2]
[314412076,1708305047787,-2054.2931077,0.00040592,2]
[314412077,1708305047796,-389.52279833,0.00040592,2]
[314412078,1708305047805,-528.14262898,0.00040592,2]
[314412079,1708305047815,-351.3297009,0.00040592,2]
[314412080,1708305047824,-9411.33817693,0.00040592,2]
[314412081,1708305047833,-36797.06478024,0.00040592,2]
[314412082,1708305047842,-1949.17222336,0.00040592,2]
[314412083,1708305047851,-1770.98320387,0.00040592,2]
[314412084,1708305047860,-706028.76722637,0.00040592,2]
[314412085,1708305047869,-152.92544454,0.00040592,120]
[314412086,1708305047878,-4173.78774585,0.00040592,2]
[314412087,1708305047887,-6758.33286509,0.00040592,120]
[314412088,1708305047896,-186093.92448997,0.00040592,32]
[314412089,1708305047943,-1653289.71366332,0.00040592,32]
[314412090,1708305047952,-6961.2864796,0.00040592,3]
[314412091,1708305047961,-1001.75311455,0.00040592,7]
[314412092,1708305047970,-8681.30000075,0.00040592,30]
[314412093,1708305047979,-206.93229169,0.00040592,120]
[314412094,1708305047988,-8696.98160192,0.00040592,30]
[314412095,1708305047999,-563.0,0.00040592,2]
[314412096,1708305048008,-2264.44380138,0.00040592,2]
[314412097,1708305048017,-13085.890879,0.00040592,2]
[314412098,1708305048026,-300.0,0.00040592,35]
[314412099,1708305048035,-35432.2098575,0.00040592,2]
[314412100,1708305048045,-10301.11626589,0.00040592,2]
[314412101,1708305048054,-5398.41713538,0.00040592,2]
[314412102,1708305048063,-1418.15984954,0.00040592,2]
[314412103,1708305048072,-13893.54660022,0.00040592,2]
[314412105,1708305618372,-250.0,0.00041,120]
[314412106,1708305702405,-250.0,0.00041,120]
[314412107,1708306149111,-155.0,0.0003285,4]
[314412108,1708306149132,-155.54053823,0.00032851,2]
[314412109,1708306149153,-204.14062891,0.00032898,4]
[314412110,1708306149172,-180.70545909,0.00032899,4]
[314412111,1708306149191,-5306.71785813,0.000329,2]
[314412112,1708306149212,-486.45,0.00032951,2]
[314412113,1708306149233,-150.0,0.0003342,2]
[314412114,1708306149256,-20000.0,0.0003342,2]
[314412115,1708306149275,-163.02191033,0.00033968,2]
[314412116,1708306149296,-367.06660531,0.0003442,2]
[314412117,1708306149326,-21461.26499469,0.0003442,2]
[314412118,1708306149346,-154.01,0.00034445,2]
[314412119,1708306149366,-500.0,0.00034455,2]
[314412120,1708306149385,-671.16,0.00034457,2]
[314412121,1708306149404,-500.0,0.00034457,2]
[314412122,1708306149424,-150.0,0.00034493,2]
[314412123,1708306149446,-533.840485,0.0003452,2]
[314412124,1708306149466,-4952.774601,0.0003452,2]
[314412125,1708306149489,-250.0,0.00034651,2]
[314412126,1708306149511,-671.16,0.00034656,2]
[314412127,1708306149533,-312.45,0.00034725,2]
[314412128,1708306149748,-800.760728,0.00034794,2]
[314412129,1708306149771,-1924.51619131,0.00034794,2]
[314412130,1708306149801,-5504.64571069,0.00034794,2]
[314412131,1708306149823,-154.01,0.00034828,2]
[314412132,1708306149844,-671.16,0.00034855,2]
[314412133,1708306149864,-213.83,0.00034875,2]
[314412134,1708306149884,-1067.68097,0.00034931,2]
[314412135,1708306149904,-759.58,0.00034931,2]
[314412136,1708306149925,-9905.549203,0.00034931,2]
[314412137,1708306149944,-789.58,0.00034959,2]
[314412138,1708306149963,-165.09,0.0003496,2]
[314412139,1708306149983,-155.0,0.00035,4]
[314412140,1708306150003,-671.16,0.00035054,2]
[314412141,1708306150024,-1334.601213,0.00035068,2]
[314412142,1708306150044,-12381.936504,0.00035068,2]
[314412143,1708306150062,-2000.0,0.00035129,2]
[314412144,1708306150082,-154.01,0.0003521,2]
[314412145,1708306150101,-486.45,0.00035215,2]
[314412146,1708306170132,-671.16,0.00035253,2]
[314412147,1708306170152,-250.0,0.00035296,2]
[314412148,1708306170172,-250.59,0.00035303,2]
[314412149,1708306170192,-1868.441698,0.00035342,2]
[314412150,1708306170211,-2717.531802,0.00035342,2]
[314412153,1708306204188,1061.54807742,0.00035215,4]
[314412156,1708306221638,295.07045189,0.00032373,7]
[314412157,1708306224172,1061.71506764,0.00035215,4]
[314412163,1708306232378,-14617.179304,0.00035342,2]
[314412164,1708306232388,-671.16,0.00035452,2]
[314412165,1708306232397,-154.01,0.00035593,2]
[314412166,1708306232407,-671.16,0.00035651,2]
[314412167,1708306232416,-2576.01,0.00035659,2]
[314412168,1708306232425,-150.0,0.00035825,2]
[314412169,1708306232435,-671.16,0.0003585,2]
[314412170,1708306232444,-243.91,0.00035871,2]
[314412171,1708306232453,-391.68,0.00035974,2]
[314412172,1708306232462,-154.01,0.00035976,2]
[314412173,1708306232472,-671.16,0.00036049,2]
[314412174,1708306232481,-671.16,0.00036249,2]
[314412175,1708306232491,-154.01,0.00036358,2]
[314412176,1708306232501,-668.00645808,0.00036598,3]
[314412177,1708306232510,-532.78636902,0.00036599,2]
[314412178,1708306232520,-49532.7867,0.000366,2]
[314412179,1708306232529,-1000.0,0.000366,2]
[314412180,1708306232538,-2500.0,0.000366,2]
[314412181,1708306232549,-500.0,0.000366,2]
[314412182,1708306232558,-18166.57376983,0.00036698,2]
[314412183,1708306232570,-319.32489131,0.00036698,2]
[314412184,1708306232582,-1102.62948,0.00036698,2]
[314412185,1708306232594,-3099.22376,0.00036698,2]
[314412186,1708306232605,-298.82,0.00036698,2]
[314412187,1708306232617,-988.44669886,0.00036698,2]
[314412188,1708306232626,-544.23913377,0.000367,2]
[314412189,1708306232638,-3646.5,0.000367,2]
[314412190,1708306232649,-14299.97656623,0.000367,2]
[314412191,1708306232659,-1212.887181,0.000367,2]
[314412192,1708306232668,-154.01,0.00036741,2]
[314412193,1708306232677,-973.35762104,0.00036798,2]
[314412194,1708306232687,-10784.423,0.00036798,2]
[314412195,1708306232696,-5310.737,0.00036798,2]
[314412196,1708306232706,-23204.89109692,0.00036798,2]
[314412197,1708306232725,-2190.82242242,0.00036798,2]
[314412198,1708306232788,-695.67617998,0.00036798,2]
[314412201,1708306232800,-1500.42492024,0.00036798,2]
[314412204,1708306232825,-7430.45553463,0.00036798,2]
[314412298,1708306238370,-155.0,0.00035341,4]
[314412299,1708306238380,-64977.72984581,0.00036798,2]
[314412300,1708306238390,-2135.361941,0.000368,2]
[314412301,1708306238399,-19811.098407,0.000368,2]
[314412302,1708306238409,-61935.05797193,0.00036898,2]
[314412303,1708306238418,-14588.3487,0.000369,2]
[314412304,1708306238429,-153.61,0.00036989,2]
[314412305,1708306238438,-39488.7513,0.00037044,2]
[314412306,1708306238447,-458.0577,0.00037044,2]
[314412307,1708306238456,-154.01,0.00037124,2]
[314412308,1708306238465,-164.93,0.00037154,2]
[314412309,1708306238474,-153.61,0.00037297,2]
[314412310,1708306238483,-171.08,0.00037397,2]
[314412311,1708306238504,-486.45,0.00037479,2]
[314412312,1708306238513,-154.01,0.00037506,2]
[314412313,1708306238524,-153.61,0.00037605,2]
[314412314,1708306238533,-165.09,0.000377,2]
[314412315,1708306238543,-150.0,0.000377,2]
[314412316,1708306238553,-187.72,0.00037711,2]
[314412317,1708306238563,-973.35762098,0.00037767,2]
[314412318,1708306238573,-150.1,0.00037827,2]
[314412319,1708306238582,-154.01,0.00037889,2]
[314412320,1708306238592,-180.0,0.00037902,2]
[314412321,1708306238603,-153.61,0.00037913,2]
[314412322,1708306238612,-447.45928363,0.00037936,7]
[314412323,1708306238622,-861.86482091,0.00037936,7]
[314412324,1708306238632,-225.73528235,0.00037936,7]
[314412325,1708306238641,-244.68929015,0.00037936,7]
[314412326,1708306238651,-735.11349961,0.00037936,7]
[314412327,1708306238660,-202.1562124,0.00037936,7]
[314412328,1708306238670,-3131.05503738,0.00037936,7]
[314412329,1708306238679,-178.95809812,0.00037936,7]
[314412330,1708306238689,-1212.88718099,0.00037944,2]
[314412331,1708306238699,-153.61,0.00038222,2]
[314412332,1708306238708,-156.85,0.00038293,2]
[314412333,1708306238718,-2777.76943549,0.00038329,13]
[314412334,1708306238728,-1409.35692645,0.00038329,11]
[314412335,1708306238737,-1121.44100999,0.00038329,13]
[314412336,1708306238747,-749.41,0.00038329,2]
[314412337,1708306238757,-4100.0,0.00038343,2]
[314412338,1708306238767,-433.069,0.00038343,2]